bitfinex/quotes_SOLUSD_20250929
["timestamp","ask_amount","ask_price","bid_price","bid_amount"]
[1759164011225,131.6,210.45,210.44,3.47963318]
[1759164011732,132.32,210.45,210.44,4.75194829]
[1759164012109,131.6,210.45,210.44,4.75194829]
[1759164013007,131.6,210.45,210.44,3.47963318]
[1759164013409,131.6,210.45,210.44,3.97963318]
[1759164014206,131.6,210.45,210.44,18.27181298]
[1759164014410,0.72,210.49,210.44,18.27181298]
[1759164014635,85.41998852,210.5,210.45,0.5]
[1759164014835,85.41998852,210.49,210.46,3.47963318]
[1759164015022,85.41998852,210.49,210.47,4.75127096]
[1759164016335,86.12998852,210.49,210.47,4.75127096]
[1759164016534,85.41998852,210.49,210.47,4.75127096]
[1759164016834,0.71,210.48,210.47,4.75127096]
[1759164019222,0.71,210.48,210.45,11.87924714]
[1759164019423,0.71,210.47,210.45,11.87924714]
[1759164019617,0.71,210.46,210.44,4.75194829]
[1759164019811,0.71,210.45,210.44,4.75194829]
[1759164021028,0.71,210.45,210.43,4.75217411]
[1759164021224,0.72,210.44,210.43,4.75217411]
[1759164024043,119.05998852,210.49,210.42,16.63292394]
[1759164024237,0.72,210.46,210.42,16.63292394]
[1759164024536,0.72,210.45,210.42,16.63292394]
[1759164024745,119.05998852,210.49,210.42,16.63292394]
[1759164024943,0.72,210.48,210.42,4.75239996]
[1759164025127,0.72,210.48,210.39,45.52217477]
[1759164025128,0.72,210.47,210.41,4.75257775]
[1759164025334,34.36,210.46,210.4,4.7528198]
[1759164025523,34.36,210.46,210.37,17.77658078]
[1759164025524,86.13998852,210.45,210.37,14.2969476]
[1759164025843,86.13998852,210.44,210.37,4.75352949]
[1759164026025,34.36,210.43,210.37,4.75352949]
[1759164026225,0.72,210.42,210.36,16.63780013]
[1759164026426,0.72,210.41,210.36,16.63780013]
[1759164026640,0.72,210.4,210.36,16.63780013]
[1759164026843,0.72,210.39,210.36,16.63780013]
[1759164027220,0.72,210.42,210.37,3.47963318]
[1759164027422,0.72,210.42,210.37,3.97963318]
[1759164027643,0.72,210.41,210.37,3.47963318]
[1759164028040,0.72,210.43,210.37,3.97963318]
[1759164028234,0.72,210.43,210.38,16.6365624]
[1759164028451,0.72,210.42,210.38,16.6365624]
[1759164029649,86.13998852,210.44,210.38,17.1365624]
[1759164029830,86.13998852,210.44,210.39,2.2294579]
[1759164030149,85.41998852,210.44,210.39,17.02572419]
[1759164030621,86.13998852,210.44,210.39,2.7294579]
[1759164030821,0.72,210.43,210.39,16.52504295]
[1759164031025,0.72,210.42,210.39,2.2294579]
[1759164031245,0.72,210.42,210.38,16.6365624]
[1759164031443,85.41998852,210.44,210.38,16.6365624]
[1759164031639,0.72,210.43,210.38,16.6365624]
[1759164031947,0.72,210.42,210.38,33.1629679]
[1759164033647,0.72,210.42,210.38,18.8660203]
[1759164034337,86.13998852,210.44,210.38,19.3660203]
[1759164034656,86.13998852,210.44,210.38,33.6629679]
[1759164034861,86.13998852,210.43,210.38,30.93351]
[1759164035151,86.13998852,210.42,210.38,4.75330354]
[1759164035348,0.72,210.41,210.34,16.63972615]
[1759164035647,0.72,210.4,210.34,16.63972615]
[1759164036057,0.72,210.39,210.34,16.63972615]
[1759164036433,0.72,210.39,210.35,33.68]
[1759164036754,0.72,210.38,210.35,33.68]
[1759164037156,0.72,210.4,210.36,16.63814412]
[1759164038830,0.72,210.39,210.36,16.63814412]
[1759164039251,0.72,210.38,210.36,16.63814412]
[1759164039432,0.72,210.38,210.36,50.29814412]
[1759164040126,0.72,210.37,210.36,50.29814412]
[1759164040553,0.72,210.39,210.36,50.29814412]
[1759164042158,0.72,210.39,210.36,16.63814412]
[1759164042466,85.41998852,210.38,210.37,33.64]
[1759164042645,85.41998852,210.38,210.36,16.63814412]
[1759164042841,85.41998852,210.37,210.36,16.63814412]
[1759164043157,86.13998852,210.37,210.36,50.29814412]
[1759164043650,86.13998852,210.37,210.36,33.66]
[1759164043859,85.41998852,210.37,210.36,33.66]
[1759164044357,0.72,210.48,210.39,26.0]
[1759164044537,0.72,210.5,210.43,26.0]
[1759164044855,0.72,210.5,210.44,33.72]
[1759164045570,0.72,210.52,210.45,0.5]
[1759164045939,0.72,210.52,210.45,14.79149894]
[1759164046139,0.72,210.51,210.46,16.63023852]
[1759164046351,0.72,210.5,210.47,33.7]
[1759164047158,0.72,210.49,210.47,33.7]
[1759164047351,0.72,210.51,210.47,33.7]
[1759164047548,0.72,210.5,210.47,33.7]
[1759164048148,0.72,210.5,210.48,4.75104522]
[1759164049969,19.63083775,210.53,210.48,18.85811619]
[1759164050265,20.35083775,210.53,210.48,18.85811619]
[1759164050465,0.72,210.52,210.48,18.85811619]
[1759164050668,0.72,210.51,210.49,33.7]
[1759164050966,0.72,210.5,210.49,33.7]
[1759164051271,0.72,210.52,210.49,33.7]
[1759164051571,0.72,210.51,210.48,4.75104522]
[1759164051739,0.72,210.5,210.48,4.75104522]
[1759164052241,0.72,210.49,210.48,4.75104522]
[1759164053077,0.72,210.49,210.46,38.45134056]
[1759164053240,0.72,210.48,210.46,4.75134056]
[1759164053439,0.72,210.47,210.46,4.75134056]
[1759164055553,0.72,210.47,210.44,4.7517592]
[1759164055756,0.72,210.46,210.44,4.7517592]
[1759164056065,26.0,210.49,210.42,4.75239996]
[1759164056066,0.72,210.45,210.42,4.75239996]
[1759164056262,0.72,210.44,210.42,4.75239996]
[1759164056442,0.72,210.44,210.41,16.63381466]
[1759164056641,0.72,210.43,210.41,16.63381466]
[1759164057549,0.72,210.5,210.42,0.5]
[1759164057852,0.72,210.5,210.43,33.72]
[1759164058052,0.72,210.49,210.42,14.29286071]
[1759164058266,0.72,210.48,210.43,33.76]
[1759164058466,0.72,210.47,210.44,16.63181903]
[1759164058971,50.38109292,210.52,210.44,4.75194829]
[1759164058972,0.72,210.46,210.44,4.75194829]
[1759164059164,0.72,210.45,210.44,4.75194829]
[1759164059662,0.72,210.45,210.42,4.75234398]
[1759164059869,0.72,210.44,210.39,38.51307761]
[1759164060044,0.72,210.43,210.39,16.63577165]
[1759164060247,0.72,210.42,210.39,16.63577165]
[1759164060450,0.72,210.42,210.38,4.75327836]
[1759164060668,0.72,210.41,210.38,4.75327836]
[1759164060980,0.72,210.4,210.38,4.75327836]
[1759164061158,0.72,210.4,210.34,33.78]
[1759164061159,0.72,210.39,210.34,4.75420747]
[1759164061346,0.72,210.38,210.34,50.41972615]
[1759164061542,20.35083775,210.4,210.34,50.41972615]
[1759164062170,20.35083775,210.4,210.35,2.2294579]
[1759164062770,19.63083775,210.4,210.36,16.63814412]
[1759164063068,0.72,210.39,210.36,4.75375546]
[1759164063270,0.72,210.39,210.33,26.18527564]
[1759164063271,20.35083775,210.38,210.34,4.75405392]
[1759164064456,20.35083775,210.38,210.33,16.64003565]
[1759164065054,0.72,210.37,210.32,46.37937842]
[1759164065256,0.72,210.37,210.32,27.32300275]
[1759164065257,20.35083775,210.36,210.32,27.32300275]
[1759164065462,0.72,210.35,210.32,27.32300275]
[1759164065670,0.72,210.34,210.32,27.32300275]
[1759164065967,0.72,210.33,210.32,27.32300275]
[1759164066857,0.72,210.33,210.32,32.07766231]
[1759164067655,0.72,210.33,210.32,27.32300275]
[1759164067863,0.72,210.33,210.32,32.07766231]
[1759164068270,19.63083775,210.36,210.32,32.07766231]
[1759164068572,0.72,210.35,210.32,32.07766231]
[1759164068871,19.63083775,210.36,210.32,43.96431122]
[1759164069068,0.72,210.35,210.32,43.96431122]
[1759164069375,19.63083775,210.36,210.32,43.96431122]
[1759164069758,20.35083775,210.36,210.32,43.96431122]
[1759164070257,19.63083775,210.36,210.32,43.96431122]
[1759164070462,19.63083775,210.36,210.32,44.46431122]
[1759164071255,19.63083775,210.36,210.32,43.96431122]
[1759164071978,19.63083775,210.36,210.32,44.46431122]
[1759164073081,19.63083775,210.36,210.33,0.5]
[1759164073874,19.63083775,210.36,210.32,43.96431122]
[1759164074177,19.63083775,210.36,210.32,44.46431122]
[1759164075379,19.63083775,210.36,210.32,78.22431122]
[1759164076075,20.33083775,210.36,210.32,43.96431122]
[1759164076273,20.33083775,210.35,210.32,32.07766231]
[1759164076574,0.7,210.34,210.32,32.07766231]
[1759164077451,19.63083775,210.35,210.32,43.96431122]
[1759164077860,0.7,210.34,210.32,43.96431122]
[1759164078462,19.63083775,210.35,210.32,43.96431122]
[1759164078670,0.7,210.33,210.32,43.96431122]
[1759164078958,0.7,210.33,210.32,32.07766231]
[1759164079662,20.33083775,210.35,210.32,32.07766231]
[1759164079992,19.63083775,210.35,210.32,32.07766231]
[1759164080290,0.7,210.34,210.32,32.07766231]
[1759164081993,19.63083775,210.35,210.32,32.07766231]
[1759164082161,19.63083775,210.35,210.32,43.96431122]
[1759164082362,0.66,210.36,210.33,2.2294579]
[1759164082363,19.63083775,210.34,210.33,2.2294579]
[1759164082691,19.63083775,210.34,210.33,7.4838914]
[1759164082992,19.63083775,210.34,210.33,41.2238914]
[1759164085790,19.63083775,210.34,210.33,40.7238914]
[1759164086991,19.63083775,210.34,210.32,27.32300275]
[1759164086992,0.66,210.34,210.32,27.32300275]
[1759164087196,64.5130523,210.4,210.32,27.32300275]
[1759164087197,0.66,210.33,210.32,27.32300275]
[1759164087386,0.66,210.33,210.32,32.07766231]
[1759164088094,0.66,210.37,210.32,43.96431122]
[1759164088391,64.51291294,210.4,210.32,46.19376912]
[1759164088598,0.66,210.36,210.34,2.2294579]
[1759164088791,0.66,210.35,210.34,2.2294579]
[1759164090001,0.66,210.35,210.34,6.98366537]
[1759164090308,0.66,210.35,210.34,8.23988604]
[1759164090804,0.66,210.35,210.34,3.48567857]
[1759164091703,0.66,210.35,210.33,4.75441066]
[1759164091883,0.66,210.34,210.33,4.75441066]
[1759164093392,0.66,210.37,210.33,4.75441066]
[1759164093695,0.66,210.37,210.34,3.48567857]
[1759164094106,64.51285205,210.4,210.34,3.48567857]
[1759164094292,0.66,210.39,210.34,3.48567857]
[1759164094494,0.66,210.38,210.34,3.48567857]
[1759164094797,0.66,210.37,210.35,4.75398145]
[1759164094984,0.66,210.36,210.35,4.75398145]
[1759164095184,0.66,210.36,210.34,3.48567857]
[1759164095185,0.66,210.36,210.34,8.23987576]
[1759164096985,0.66,210.35,210.34,8.23987576]
[1759164098392,64.51286941,210.4,210.34,8.23987576]
[1759164098597,0.66,210.38,210.34,8.23987576]
[1759164098909,0.66,210.37,210.34,8.23987576]
[1759164099114,64.51286941,210.4,210.34,8.23987576]
[1759164099408,0.66,210.39,210.34,8.23987576]
[1759164099591,64.51286941,210.4,210.34,8.23987576]
[1759164099907,0.66,210.39,210.34,8.23987576]
[1759164100083,0.66,210.38,210.34,8.23987576]
[1759164100282,64.51286941,210.4,210.34,8.23987576]
[1759164100283,0.66,210.37,210.34,8.23987576]
[1759164100509,0.66,210.36,210.34,8.23987576]
[1759164101495,0.66,210.35,210.32,27.32300275]
[1759164101695,0.66,210.34,210.32,27.32300275]
[1759164101901,26.0,210.37,210.32,27.32300275]
[1759164101902,0.66,210.33,210.32,27.32300275]
[1759164103221,0.66,210.33,210.32,32.07766231]
[1759164103522,131.6,210.34,210.32,32.07766231]
[1759164103818,0.66,210.33,210.32,32.07766231]
[1759164104820,0.66,210.33,210.32,27.32300275]
[1759164108993,33.7,210.36,210.32,32.07766231]
[1759164109194,26.66,210.35,210.32,35.56334088]
[1759164109390,0.66,210.34,210.32,27.32300275]
[1759164109621,0.66,210.33,210.32,27.32300275]
[1759164119810,45.01002751,210.33,210.32,27.32300275]
[1759164120233,45.01002751,210.33,210.32,25.88300275]
[1759164120407,44.35002751,210.33,210.32,25.88300275]
[1759164120733,64.4144335,210.33,210.32,25.88300275]
[1759164121310,26.0,210.33,210.32,25.88300275]
[1759164121511,59.68,210.33,210.32,25.88300275]
[1759164122639,26.0,210.33,210.32,26.59300275]
[1759164123130,33.68,210.35,210.32,31.34759983]
[1759164123337,33.68,210.35,210.33,0.71]
[1759164126925,131.6,210.34,210.32,25.88300275]
[1759164127131,131.6,210.34,210.32,31.34764197]
[1759164127929,131.6,210.33,210.32,30.63764197]
[1759164128115,131.6,210.33,210.32,34.12332054]
[1759164128629,13.59559401,210.41,210.32,46.71996945]
[1759164128827,13.59559401,210.41,210.36,3.48567857]
[1759164128828,26.0,210.38,210.36,3.48567857]
[1759164129013,26.0,210.38,210.36,4.19567857]
[1759164129217,13.59559401,210.41,210.36,4.19567857]
[1759164129527,33.66,210.39,210.37,0.71]
[1759164129910,33.66,210.39,210.36,3.48567857]
[1759164130107,0.71,210.38,210.36,3.48567857]
[1759164130322,0.71,210.38,210.34,3.48567857]
[1759164130532,38.41312074,210.39,210.34,4.19567857]
[1759164130732,39.12312074,210.39,210.34,4.19567857]
[1759164131036,38.41312074,210.39,210.34,4.19567857]
[1759164131210,0.71,210.38,210.34,4.19567857]
[1759164131714,33.66,210.39,210.35,0.71]
[1759164132019,33.66,210.39,210.36,0.71]
[1759164132444,33.66,210.39,210.34,8.94973635]
[1759164132728,33.66,210.39,210.35,0.71]
[1759164132940,33.66,210.39,210.35,4.19567857]
[1759164133122,33.66,210.39,210.36,0.71]
[1759164133428,131.6,210.38,210.37,8.94920806]
[1759164135326,132.32,210.38,210.33,12.5356198]
[1759164135637,132.32,210.38,210.34,8.88988604]
[1759164135638,131.6,210.38,210.34,8.88988604]
[1759164135830,131.6,210.37,210.35,0.65]
[1759164136029,165.26,210.37,210.32,25.88300275]
[1759164136238,0.72,210.36,210.32,30.63760423]
[1759164136528,165.26,210.37,210.32,34.7732828]
[1759164136832,165.98,210.37,210.32,34.7732828]
[1759164137038,0.72,210.36,210.32,34.1232828]
[1759164137236,165.26,210.37,210.32,34.1232828]
[1759164137237,0.72,210.35,210.32,34.1232828]
[1759164137454,165.26,210.37,210.32,34.7732828]
[1759164137647,165.26,210.37,210.33,0.65]
[1759164137936,165.26,210.37,210.32,46.65993171]
[1759164138139,0.72,210.36,210.32,34.1232828]
[1759164138341,3.48567857,210.33,210.23,0.1]
[1759164138549,39.59559401,210.24,210.23,0.1]
[1759164138848,74.05559401,210.24,210.23,0.1]
[1759164139011,74.68559401,210.24,210.23,0.1]
[1759164139214,76.59440077,210.24,210.23,0.1]
[1759164139628,81.35086956,210.24,210.23,0.1]
[1759164140429,84.83654813,210.24,210.23,0.1]
[1759164141323,34.44,210.24,210.23,0.1]
[1759164142530,39.19646879,210.24,210.23,0.1]
[1759164142734,39.82646879,210.24,210.23,0.1]
[1759164143620,39.19646879,210.24,210.23,0.1]
[1759164144140,34.44,210.24,210.23,0.1]
[1759164144714,53.4220628,210.24,210.23,0.1]
[1759164145115,58.82958456,210.24,210.23,0.1]
[1759164147942,56.90774137,210.24,210.23,0.1]
[1759164148332,53.42998825,210.24,210.23,0.1]
[1759164148519,51.52127258,210.24,210.23,0.1]
[1759164148726,56.27774137,210.24,210.23,0.1]
[1759164149935,39.19646879,210.24,210.23,0.1]
[1759164150147,60.44,210.24,210.23,0.1]
[1759164150645,65.19646879,210.24,210.23,0.1]
[1759164150850,60.44,210.24,210.23,0.75]
[1759164151026,26.0,210.24,210.23,0.75]
[1759164151651,30.75646879,210.24,210.23,0.75]
[1759164151949,26.0,210.24,210.23,0.75]
[1759164153044,26.0,210.24,210.23,0.1]
[1759164154151,30.75646879,210.24,210.23,0.1]
[1759164158258,44.3520628,210.24,210.23,0.1]
[1759164158428,18.9820628,210.24,210.23,0.1]
[1759164158627,18.3520628,210.24,210.23,0.1]
[1759164158834,34.36,210.25,210.23,0.1]
[1759164159043,34.36,210.25,210.23,0.75]
[1759164159251,4.755564,210.28,210.24,0.65]
[1759164159554,34.32,210.27,210.25,0.65]
[1759164159744,60.32,210.27,210.25,0.65]
[1759164160555,131.6,210.26,210.25,0.65]
[1759164161353,18.35073294,210.3,210.25,0.65]
[1759164161660,18.35073294,210.3,210.24,4.75640534]
[1759164161661,26.0,210.27,210.26,0.65]
[1759164161851,26.0,210.27,210.24,4.75640534]
[1759164162163,26.0,210.27,210.23,4.8566742]
[1759164162354,26.0,210.27,210.24,0.65]
[1759164162828,26.0,210.27,210.24,5.40626105]
[1759164163031,26.0,210.27,210.25,0.65]
[1759164163226,26.0,210.27,210.26,0.65]
[1759164163753,34.32,210.3,210.26,0.65]
[1759164163754,26.0,210.28,210.26,0.65]
[1759164164251,26.0,210.28,210.27,0.65]
[1759164165261,26.0,210.28,210.25,0.65]
[1759164165569,26.0,210.28,210.26,0.65]
[1759164166063,30.7555798,210.28,210.26,0.65]
[1759164166234,30.7555798,210.28,210.24,0.65]
[1759164166536,31.3855798,210.28,210.23,0.1]
[1759164166736,34.28,210.27,210.23,0.75]
[1759164169037,39.03588218,210.27,210.23,0.75]
[1759164169240,34.28,210.27,210.24,0.65]
[1759164169447,34.28,210.27,210.25,0.65]
[1759164169762,34.28,210.27,210.23,0.1]
[1759164169943,34.28,210.27,210.24,0.65]
[1759164171082,2.86421253,210.26,210.23,0.1]
[1759164171247,39.59559401,210.24,210.22,1e-08]
[1759164171556,58.05168833,210.23,210.22,1e-08]
[1759164171747,58.68168833,210.23,210.22,1e-08]
[1759164171943,62.91039123,210.23,210.22,1e-08]
[1759164172147,65.14460376,210.23,210.22,1e-08]
[1759164172447,67.05386606,210.23,210.22,1e-08]
[1759164173048,71.8105611,210.23,210.22,1e-08]
[1759164173253,66.29207474,210.23,210.22,1e-08]
[1759164173450,68.52628727,210.23,210.22,1e-08]
[1759164174044,39.59559401,210.19,210.18,1e-08]
[1759164174369,39.59559401,210.15,210.14,1e-08]
[1759164174566,76.42980654,210.15,210.14,1e-08]
[1759164174749,80.23844814,210.15,210.14,1e-08]
[1759164174952,42.77423561,210.15,210.14,1e-08]
[1759164175168,78.95409983,210.15,210.14,1e-08]
[1759164176268,13.59559401,210.19,210.14,0.70000001]
[1759164176466,13.59559401,210.17,210.15,0.7]
[1759164176663,60.62,210.16,210.15,0.7]
[1759164176973,60.62,210.16,210.14,1e-08]
[1759164177467,34.62,210.16,210.15,0.7]
[1759164177699,4.75670849,210.23,210.15,0.7]
[1759164177974,34.6,210.22,210.15,0.7]
[1759164178175,26.0,210.19,210.16,4.7582794]
[1759164178349,34.6,210.2,210.17,0.7]
[1759164178541,13.59559401,210.24,210.17,0.7]
[1759164178761,34.6,210.23,210.17,0.7]
[1759164178953,60.6,210.23,210.17,0.7]
[1759164179156,34.6,210.23,210.17,0.7]
[1759164179458,34.58,210.22,210.17,0.7]
[1759164179650,39.33697062,210.22,210.14,11.89657691]
[1759164180256,39.33697062,210.22,210.14,1e-08]
[1759164180458,26.0,210.19,210.14,1e-08]
[1759164180661,60.56,210.19,210.14,1e-08]
[1759164181171,61.22,210.19,210.14,1e-08]
[1759164181678,39.31782662,210.18,210.14,0.70000001]
[1759164181847,26.0,210.19,210.15,0.7]
[1759164182056,34.54,210.18,210.15,0.7]
[1759164182254,34.54,210.18,210.16,0.7]
[1759164182653,26.0,210.19,210.17,0.7]
[1759164182872,34.54,210.18,210.17,0.7]
[1759164183071,131.6,210.17,210.15,0.7]
[1759164183557,131.6,210.17,210.14,1e-08]
[1759164183767,136.35811588,210.17,210.14,1e-08]
[1759164183949,34.54,210.16,210.14,1e-08]
[1759164184564,171.85559401,210.15,210.14,1e-08]
[1759164185669,176.61409983,210.15,210.14,1e-08]
[1759164185882,192.1,210.15,210.14,0.70000001]
[1759164186065,192.1,210.15,210.14,1e-08]
[1759164189189,60.5,210.15,210.14,1e-08]
[1759164190503,65.91850582,210.15,210.14,1e-08]
[1759164192578,65.25850582,210.15,210.14,1e-08]
[1759164194611,60.5,210.15,210.14,0.70000001]
[1759164194769,60.4,210.15,210.14,0.70000001]
[1759164195702,60.4,210.15,210.14,1e-08]
[1759164196692,60.4,210.15,210.14,0.70000001]
[1759164196890,26.0,210.15,210.14,0.70000001]
[1759164197186,34.38,210.18,210.14,0.70000001]
[1759164197708,34.38,210.18,210.14,1e-08]
[1759164197900,34.38,210.18,210.15,0.7]
[1759164198108,34.38,210.18,210.16,0.7]
[1759164200237,39.13784773,210.18,210.14,0.70000001]
[1759164200398,39.80784773,210.18,210.14,0.70000001]
[1759164200791,0.67,210.17,210.14,1e-08]
[1759164200993,34.34,210.16,210.14,1e-08]
[1759164201199,35.04,210.16,210.14,1e-08]
[1759164202109,131.6,210.15,210.14,1e-08]
[1759164204597,132.3,210.15,210.14,1e-08]
[1759164204912,131.6,210.15,210.14,1e-08]
[1759164205293,34.28,210.15,210.14,0.68000001]
[1759164205487,34.28,210.15,210.14,1e-08]
[1759164205693,34.28,210.15,210.14,0.68000001]
[1759164205888,34.28,210.15,210.14,1e-08]
[1759164206612,34.98,210.15,210.14,1e-08]
[1759164207199,34.26,210.2,210.14,0.68000001]
[1759164207514,34.28,210.19,210.14,0.68000001]
[1759164208616,34.28,210.19,210.15,0.68]
[1759164208818,34.28,210.19,210.16,0.68]
[1759164209914,0.7,210.18,210.14,1e-08]
[1759164210104,34.98,210.19,210.14,0.68000001]
[1759164210301,26.0,210.16,210.14,1e-08]
[1759164210508,34.26,210.15,210.14,1e-08]
[1759164210706,39.71850582,210.15,210.14,1e-08]
[1759164212000,34.26,210.15,210.14,1e-08]
[1759164214307,34.96,210.15,210.14,1e-08]
[1759164214801,39.71850582,210.15,210.14,1e-08]
[1759164215811,39.01850582,210.15,210.14,1e-08]
[1759164216021,34.26,210.15,210.14,1e-08]
[1759164221033,37.4549371,210.15,210.14,1e-08]
[1759164221209,42.21344441,210.15,210.14,1e-08]
[1759164221415,42.91344441,210.15,210.14,1e-08]
[1759164222107,38.15493859,210.15,210.14,1e-08]
[1759164222625,37.45493859,210.15,210.14,1e-08]
[1759164223135,37.45493859,210.15,210.14,0.68000001]
[1759164223307,34.26,210.15,210.14,1e-08]
[1759164225009,39.59559401,210.22,210.14,0.68000001]
[1759164225202,26.0,210.18,210.14,1e-08]
[1759164225516,34.16,210.17,210.14,1e-08]
[1759164225717,34.86,210.17,210.14,1e-08]
[1759164227428,4.7582794,210.16,210.14,1e-08]
[1759164227630,34.18,210.15,210.14,1e-08]
[1759164229148,34.88,210.15,210.14,1e-08]
[1759164229438,39.63850582,210.15,210.14,1e-08]
[1759164233232,53.23409983,210.15,210.14,1e-08]
[1759164233643,56.43395747,210.15,210.14,1e-08]
[1759164237345,55.63395747,210.15,210.14,1e-08]
[1759164237547,56.33395747,210.15,210.14,1e-08]
[1759164240725,59.82623512,210.15,210.14,1e-08]
[1759164241042,66.45065025,210.15,210.14,1e-08]
[1759164242816,80.94920313,210.15,210.14,1e-08]
[1759164243651,100.94920313,210.15,210.14,1e-08]
[1759164244017,39.59559401,210.11,210.02,29.23898072]
[1759164244222,13.59559401,210.04,210.02,29.23898072]
[1759164244428,73.79559401,210.03,210.02,29.23898072]
[1759164245143,78.55681859,210.03,210.02,29.23898072]
[1759164245642,44.35681859,210.03,210.02,29.23898072]
[1759164245832,78.55681859,210.03,210.02,29.23898072]
[1759164246443,79.25681859,210.03,210.02,29.23898072]
[1759164246823,53.25681859,210.03,210.02,29.23898072]
[1759164249041,67.58928401,210.03,210.02,29.23898072]
[1759164250859,67.58928401,210.03,210.02,3.58972006]
[1759164251036,67.58928401,210.03,209.96,0.1]
[1759164251037,39.59559401,209.99,209.96,0.1]
[1759164251240,37.65227765,209.98,209.96,0.1]
[1759164251545,17.08787166,209.97,209.96,0.1]
[1759164251730,51.24787166,209.97,209.96,0.1]
[1759164251930,51.94787166,209.97,209.96,0.1]
[1759164252333,0.7,209.99,209.96,0.1]
[1759164252540,3.18327435,209.97,209.96,0.78]
[1759164252843,3.18327435,209.97,209.96,0.1]
[1759164253045,7.94585948,209.97,209.96,0.1]
[1759164253235,30.76258513,209.97,209.96,0.1]
[1759164253441,68.18585948,209.97,209.96,0.1]
[1759164253736,81.78145349,209.97,209.96,0.1]
[1759164254047,94.38791631,209.97,209.92,0.1]
[1759164254355,42.77886836,209.93,209.92,0.1]
[1759164254653,34.28,209.93,209.92,0.1]
[1759164254838,51.05886836,209.93,209.92,0.1]
[1759164255035,52.6390866,209.93,209.92,0.1]
[1759164255263,26.0,209.94,209.92,0.76]
[1759164255437,4.76308548,209.95,209.92,0.76]
[1759164255438,60.28,209.93,209.92,0.76]
[1759164255632,60.34,209.93,209.92,0.76]
[1759164257065,13.59559401,209.96,209.92,0.76]
[1759164257066,26.0,209.96,209.92,0.76]
[1759164257259,34.34,209.95,209.92,0.76]
[1759164257750,34.34,209.95,209.92,0.1]
[1759164257952,26.0,209.93,209.92,0.1]
[1759164258263,60.34,209.93,209.92,0.1]
[1759164258729,73.93559401,209.93,209.92,0.1]
[1759164258929,81.88236095,209.93,209.92,0.1]
[1759164259129,78.6990866,209.93,209.92,0.1]
[1759164259341,79.4090866,209.93,209.92,0.1]
[1759164259654,78.6990866,209.93,209.92,0.1]
[1759164261056,44.3590866,209.93,209.92,0.1]
[1759164261256,78.7190866,209.93,209.92,0.1]
[1759164261734,44.3590866,209.93,209.92,0.1]
[1759164261936,78.6990866,209.93,209.92,0.1]
[1759164262251,79.3990866,209.93,209.92,0.1]
[1759164262652,78.6990866,209.93,209.92,0.1]
[1759164263654,79.3990866,209.93,209.92,0.1]
[1759164264236,145.19559401,209.92,209.85,0.7]
[1759164264440,3.18327435,209.87,209.85,0.7]
[1759164264758,165.92,209.86,209.85,0.7]
[1759164266059,165.92,209.86,209.73,20.0]
[1759164266060,39.08508148,209.86,209.73,11.91781474]
[1759164266238,134.78327435,209.85,209.83,0.7]
[1759164266434,165.92,209.84,209.73,16.68812282]
[1759164266635,165.92,209.83,209.73,16.68812282]
[1759164266854,34.32,209.82,209.73,16.68812282]
[1759164267060,34.32,209.82,209.74,0.7]
[1759164267554,131.6,209.83,209.75,16.68653158]
[1759164267859,34.32,209.82,209.76,0.7]
[1759164269154,34.3,209.81,209.76,0.7]
[1759164269553,131.6,209.8,209.76,0.7]
[1759164269748,34.3,209.79,209.77,4.76712589]